[Event "Azerbaijan Women Championship 2022"]
[Site "Baku"]
[Date "2022.05.22"]
[Round "6.4"]
[White "Fataliyeva, Ulviyya"]
[Black "Hajiyeva, Laman"]
[Result "0-1"]
[ECO "D10"]
[WhiteElo "2348"]
[BlackElo "1971"]
[Annotator "TA"]
[PlyCount "96"]
[EventDate "2022.05.17"]
[EventType "tourn"]
[EventCountry "AZE"]
[SourceTitle "playchess.com"]
[Source "ChessBase"]
[SourceQuality "1"]
[TimeControl "40/5400+30:1800+30"]

{[%evp 13,96,19,18,10,16,10,10,12,16,12,20,16,28,20,12,18,19,22,41,32,79,89,77,62,82,83,72,79,97,17,18,15,56,80,66,25,25,12,4,0,0,0,23,24,35,9,40,0,38,-44,0,0,0,-53,-61,-56,-27,-20,0,-341,-346,-697,-675,-889,-864,-992,-989,-989,-911,-1264,-1245,-1476,-1565,-1260,-1118,-29975,-29976,-29983,-29984,-29984,-29985,-29991,-29992,-29992,-29993]} 1. d4 {[%emt 0:00:14]} d5 {[%emt 0:00:10]} 2. c4 {[%emt 0:00:04]} c6 {[%emt 0:00:18]} 3. cxd5 {[%emt 0:00:05]} cxd5 {[%emt 0:00:05]} 4. Bf4 {[%emt 0:00:06]} Nf6 {[%emt 0:00:20]} 5. Nc3 {[%emt 0:00:05]} Nc6 {[%emt 0:00:16]} 6. e3 {[%emt 0:00:07]} Bf5 {[%emt 0:01:13]} 7. Qb3 {[%emt 0:00:43]} Na5 $1 {[%emt 0:00:50]} 8. Qa4+ {[%emt 0:00:09] D10: Slav Defence: 3 cxd5 (without early Nf3) and 3 Nc3.} Bd7 {[%emt 0:00:10]} 9. Qc2 {[%emt 0:00:05] With the idea Nb5.} e6 {[%emt 0:01:05]} 10. Bd3 {[%emt 0:00:26] The position is equal.} Rc8 {[%emt 0:01:27]} 11. Nf3 {[%emt 0:01:10]} Bb4 $1 {[%emt 0:02:10][%cal Of6e4][%mdl 4] is now more promising than 11...Be7.} 12. O-O {[%emt 0:01:01]} O-O {[%emt 0:03:09]} 13. Ne5 {[%emt 0:01:49]} h6 {[%emt 0:04:28]} 14. h3 {[%emt 0:02:10]} Qe7 {[%emt 0:03:43]} 15. Rfc1 {[%emt 0:07:19] [#]} Bxc3 $146 {[%emt 0:02:31]} ({Predecessor:} 15... a6 16. Qd1 Nc4 17. Bxc4 dxc4 18. Bg3 Be8 19. Bh4 g5 20. Bg3 Bxc3 21. bxc3 Ne4 {½-½ (35) Neto,H (2615)-Hall,R (2642) ICCF email 2012}) 16. bxc3 {[%emt 0:00:19]} Nc4 {[%emt 0:04:55]} (16... Rfd8 $14 {should be considered.}) 17. Bxc4 $16 {[%emt 0:01:13]} dxc4 {[%emt 0:00:31]} 18. e4 {[%emt 0:00:32]} Rfd8 {[%emt 0:04:47]} 19. Bg3 {[%emt 0:05:48]} ({Reject} 19. Nxd7 Nxd7 20. Be3 e5 $11) 19... Nh5 {[%emt 0:15:08]} 20. Bh2 {[%emt 0:01:13]} b5 {[%emt 0:07:15]} 21. Nxd7 {[%emt 0:05:47]} (21. a4 $16) 21... Rxd7 $11 {[%emt 0:02:09]} 22. Rab1 {[%emt 0:01:19]} a6 {[%emt 0:02:58]} 23. a4 {[%emt 0:03:20]} b4 {[%emt 0:05:42]} 24. cxb4 {[%emt 0:13:14] Qe2 is the strong threat.} Rxd4 {[%emt 0:01:14]} 25. b5 {[%emt 0:04:43]} (25. Be5 $5 {[%cal Re5d4]} Rdd8 26. Rd1 $11) 25... axb5 {[%emt 0:07:37]} 26. Rxb5 {[%emt 0:01:41]} Nf6 {[%emt 0:02:21] Strongly threatening ...c3.} 27. Be5 {[%emt 0:00:29]} Rd7 {[%emt 0:04:36][%cal Oc4c3]} (27... Rd3 $5 {[%cal Rf6e4]}) 28. Qe2 {[%emt 0:01:28]} Qd8 {[%emt 0:02:14]} 29. Bc3 {[%emt 0:04:12]} ({Not} 29. Rxc4 $2 Rxc4 30. Qxc4 Rd1+ 31. Kh2 Ng4+ $1 {[%mdl 512]} 32. Kg3 Rd3+ 33. f3 Ne3 $19) 29... Rd3 {[%emt 0:03:09]} 30. Kh2 {[%emt 0:03:55]} Ne8 {[%emt 0:04:25]} 31. Qg4 {[%emt 0:01:43]} (31. e5 $14) 31... Qc7+ {[%emt 0:01:16]} 32. Kg1 {[%emt 0:10:03]} Qd6 {[%emt 0:01:09]} 33. Be5 {[%emt 0:05:43]} ({Better is} 33. Rb7 $11) 33... Qa6 $15 {[%emt 0:02:27]} 34. Kh2 {[%emt 0:08:44]} Qxa4 {[%emt 0:01:53]} 35. Rb7 {[%emt 0:00:02] Hoping for Ra1.} c3 {[%emt 0:02:30] White must now prevent ...c2.} 36. Qf4 $2 {[%emt 0:07:23][%mdl 8192]} (36. Qh5 $11 Qxe4 37. Qxf7+ Kh7 {[#]} 38. Qxe6 $1 (38. Bxg7 $2 Nd6 $19)) 36... f6 $19 {[%emt 0:01:36]} 37. Bb8 $2 {[%emt 0:09:09]} (37. Bxc3 Rdxc3 38. Rxc3 Rxc3 39. Re7) 37... Qc6 {[%emt 0:03:21]} 38. Rb3 {[%emt 0:00:14]} g5 {[%emt 0:01:39]} 39. Qg4 {[%emt 0:00:41] [#]} Rxb8 $1 {[%emt 0:00:14][%mdl 512]} 40. Rxb8 {[%emt 0:00:00]} Qd6+ {[%emt 0:00:00]} 41. g3 {[%emt 0:07:08]} Qxb8 {[%emt 0:01:02]} 42. Qxe6+ Kf8 {[%emt 0:00:58] aiming for ...Qb2.} 43. Qc4 {[%emt 0:02:51]} Qb2 {[%emt 0:04:07][%csl LRc1,LRf2]} 44. Qc5+ {[%emt 0:00:37]} Nd6 {[%emt 0:00:27] Black mates.} 45. Re1 {[%emt 0:01:29]} c2 {[%emt 0:05:04]} 46. e5 {[%emt 0:04:25]} fxe5 {[%emt 0:01:06]} 47. Rxe5 {[%emt 0:00:32]} c1=Q {[%emt 0:01:00]} 48. Rf5+ {[%emt 0:00:09]} Kg8 {[%emt 0:00:32] Weighted Error Value: White=0.68/Black=0.11 (very precise)} 0-1

[Event "Azerbaijan Women Championship 2022"]
[Site "Baku"]
[Date "2022.05.23"]
[Round "7.1"]
[White "Allahverdiyeva, Ayan"]
[Black "Mammadova, Gulnar"]
[Result "0-1"]
[ECO "C76"]
[WhiteElo "2120"]
[BlackElo "2387"]
[Annotator "TA"]
[PlyCount "78"]
[EventDate "2022.05.17"]
[EventType "tourn"]
[EventCountry "AZE"]
[SourceTitle "playchess.com"]
[Source "ChessBase"]
[SourceQuality "1"]
[TimeControl "40/5400+30:1800+30"]

{[%evp 11,78,27,34,27,30,29,20,34,38,34,29,-43,-32,-54,-12,-78,-29,-145,-150,-233,-218,-242,-234,-219,-237,-210,-162,-297,-299,-295,-292,-347,-340,-442,-454,-462,-420,-591,-583,-613,-620,-593,-577,-753,-300,-361,-211,-608,-606,-918,-884,-936,-941,-941,-928,-936,-921,-896,-906,-1535,-1527,-2725,-3149,-29984,-29985,-29996,-29997,-29997,-29997]} 1. e4 {[%emt 0:07:09]} e5 {[%emt 0:00:13]} 2. Nf3 {[%emt 0:04:32]} Nc6 {[%emt 0:00:11]} 3. Bb5 {[%emt 0:00:00]} a6 {[%emt 0:00:06]} 4. Ba4 {[%emt 0:00:01]} d6 {[%emt 0:00:12]} 5. c3 {[%emt 0:00:10]} Bd7 {[%emt 0:01:10]} 6. d4 {[%emt 0:00:11]} g6 $1 {[%emt 0:00:12] 6...g6 scores better than 6...Nge7.} 7. d5 {[%emt 0:09:00] C76: Ruy Lopez: Deferred Steinitz: 5 c3 Bd7 6 d4 g6.} Nce7 {[%emt 0:02:03]} 8. Bxd7+ {[%emt 0:01:01]} Qxd7 {[%emt 0:00:04]} 9. c4 {[%emt 0:02:44] The position is equal.} Bg7 {[%emt 0:00:44]} 10. Nc3 {[%emt 0:00:19]} h6 {[%emt 0:00:24] [#]} 11. Rg1 $146 {[%emt 0:19:13]} (11. Qb3 $11) ({Predecessor:} 11. O-O f5 12. exf5 gxf5 13. Qb3 b6 14. Re1 Nf6 15. a4 a5 16. Nb5 O-O 17. Bd2 Ne4 18. Rad1 Ng6 19. Be3 Qf7 {1-0 (58) Sevian,S (2578)-Demchenko,A (2596) Chess.com INT 2015}) 11... f5 {[%emt 0:03:38]} 12. h3 {[%emt 0:11:57]} Nf6 {[%emt 0:01:34]} 13. Nd2 {[%emt 0:02:07]} (13. exf5 $11 {keeps the balance.} gxf5 14. Qe2) 13... c6 {[%emt 0:09:40]} (13... b5 $17) 14. h4 {[%emt 0:14:08]} (14. g4 $11) 14... O-O {[%emt 0:06:40]} 15. Nf1 {[%emt 0:03:13]} (15. a4 $17) 15... b5 $19 {[%emt 0:13:33]} 16. dxc6 {[%emt 0:05:45]} Qxc6 {[%emt 0:00:17]} 17. cxb5 {[%emt 0:00:21]} axb5 {[%emt 0:00:04]} 18. Qb3+ {[%emt 0:00:10]} Qc4 {[%emt 0:01:05]} 19. Qxb5 {[%emt 0:00:11]} (19. Qxc4+ {might work better.} bxc4 20. Nd2) 19... Qe6 {[%emt 0:03:27]} ({Wrong is} 19... Qxb5 $2 20. Nxb5 Nxe4 21. Nd2 $19) 20. exf5 {[%emt 0:07:47]} gxf5 {[%emt 0:02:15]} ({Worse is} 20... Nxf5 21. Ne3 $17) 21. Rh1 {[%emt 0:04:29]} d5 {[%emt 0:01:42][%cal Bd6d5,Bd5d4][%mdl 32]} 22. Nd2 {[%emt 0:03:41]} d4 {[%emt 0:03:09]} 23. Ne2 {[%emt 0:00:18]} Nfd5 {[%emt 0:01:02]} 24. Nb3 {[%emt 0:01:50]} (24. Rh3 $142) 24... Rfb8 {[%emt 0:01:18]} 25. Qc4 {[%emt 0:00:11]} Rc8 {[%emt 0:01:23]} 26. Qb5 {[%emt 0:00:35]} Rab8 {[%emt 0:01:15]} 27. Qa4 {[%emt 0:00:41]} Nb4 $2 {[%emt 0:02:13]} (27... d3 28. Nc3 Ra8) 28. Kf1 {[%emt 0:00:01]} Qd5 {[%emt 0:03:53]} (28... Nc2 $142 29. Rb1 f4) 29. Rh3 $2 {[%emt 0:00:53]} (29. Bd2 Nc2 30. Rd1) 29... Nc2 {[%emt 0:02:54] [#] White must now prevent ...Ra8.} 30. Qa6 {[%emt 0:01:10]} Nxa1 {[%emt 0:01:00]} 31. Nxa1 {[%emt 0:00:01]} Ra8 {[%emt 0:01:25]} 32. Qb6 {[%emt 0:00:43]} d3 {[%emt 0:02:00] Hoping for ...Rxc1+.} 33. Nc3 {[%emt 0:00:58]} d2 {[%emt 0:00:20]} 34. Bxd2 {[%emt 0:00:28]} Qxd2 {[%emt 0:00:04]} 35. Nb3 {[%emt 0:00:37]} Qxb2 {[%emt 0:01:50]} 36. Qe6+ {[%emt 0:00:36]} Kf8 {[%emt 0:00:57]} 37. Rg3 {[%emt 0:00:41]} Rxc3 {[%emt 0:00:46] Black mates.} 38. Rxg7 {[%emt 0:00:05]} Qb1+ {[%emt 0:00:07]} ({Weaker is} 38... Kxg7 39. Qxe7+ Kh8 40. Qf6+ Kh7 41. Qf7+ Kh8 42. Qf6+ Kh7 43. Qf7+ Kh8 44. Qf6+ $11) 39. Ke2 {[%emt 0:00:01]} Rxa2+ {[%emt 0:00:15] White got outplayed after the opening.  Weighted Error Value: White=0.96/Black=0.21 (precise)} 0-1

[Event "Azerbaijan Women Championship 2022"]
[Site "Baku"]
[Date "2022.05.23"]
[Round "7.2"]
[White "Balajayeva, Khanim"]
[Black "Fataliyeva, Ulviyya"]
[Result "0-1"]
[ECO "B10"]
[WhiteElo "2376"]
[BlackElo "2348"]
[Annotator "TA"]
[PlyCount "76"]
[EventDate "2022.05.17"]
[EventType "tourn"]
[EventCountry "AZE"]
[SourceTitle "playchess.com"]
[Source "ChessBase"]
[SourceQuality "1"]
[TimeControl "40/5400+30:1800+30"]

{[%evp 20,76,35,21,71,71,83,51,75,25,29,17,27,0,0,-189,-193,-178,-166,-188,-174,-194,-181,-187,-178,-180,-186,-185,-173,-225,-185,-258,-250,-247,-237,-237,-237,-298,-278,-313,-242,-359,-369,-435,-344,-634,-631,-610,-339,-314,-298,-351,-325,-404,-396,-733,-706,-721,-707]} 1. e4 {[%emt 0:00:01]} c6 {[%emt 0:01:44]} 2. c4 {[%emt 0:00:11]} d5 {[%emt 0:00:03]} 3. exd5 {[%emt 0:00:03]} cxd5 {[%emt 0:00:03]} 4. cxd5 {[%emt 0:00:03]} Nf6 {[%emt 0:00:04]} 5. Nc3 {[%emt 0:00:06]} Nxd5 {[%emt 0:02:44]} 6. Nf3 {[%emt 0:00:13]} Nc6 {[%emt 0:01:51]} 7. Bb5 {[%emt 0:00:52]} e6 {[%emt 0:05:57]} 8. O-O {[%emt 0:00:51]} Bd6 {[%emt 0:04:32]} 9. d4 {[%emt 0:02:17]} Nxc3 {[%emt 0:02:24]} 10. bxc3 {[%emt 0:02:24]} O-O {[%emt 0:00:23]} 11. Bd3 {[%emt 0:01:21]} g6 {[%emt 0:02:08] B22: Sicilian: 2 c3.} (11... e5 $11 {keeps the balance.}) 12. Re1 $16 {[%emt 0:07:48]} Qc7 {[%emt 0:01:13]} 13. Qe2 {[%emt 0:10:29]} (13. h4 {looks sharper.} e5 14. Bh6 Rd8 15. Ng5) 13... Bd7 {[%emt 0:10:13] [#] White is slightly better.} 14. c4 $146 {[%emt 0:09:42]} (14. h4 $16) ({Predecessor:} 14. Rb1 Rac8 15. Bd2 Rfe8 16. Qe4 b6 17. Qh4 Qd8 18. Ng5 h5 19. g4 Ne7 {1-0 (33) Lehner,O (2315)-Waller,H (2150) Graz 1994}) 14... Rfe8 {[%emt 0:07:17]} 15. Bb2 {[%emt 0:01:03]} Bf8 {[%emt 0:01:58][%cal Bd6f8,Bf8g7,Bg7b2][%mdl 32]} 16. Ng5 {[%emt 0:07:42] And now d5 would win.} Bg7 {[%emt 0:07:00]} 17. d5 {[%emt 0:10:57] [#] White is now going downhill.} (17. Qd2 $11 {and White is okay.}) 17... exd5 $1 $19 {[%emt 0:02:44]} 18. Qf3 {[%emt 0:01:20]} Bg4 $1 {[%emt 0:02:21] Dancing on a razor blade.} 19. Qxg4 {[%emt 0:01:28] Black must now prevent Bxg7.} Bxb2 {[%emt 0:00:08]} 20. Rab1 {[%emt 0:02:48]} Ne5 $36 {[%emt 0:15:28][%mdl 2048] Keeping White busy.} 21. Qf4 {[%emt 0:11:30] [#]} h6 $1 {[%emt 0:06:39]} ({Inferior is} 21... dxc4 22. Bc2 $17) 22. Nf3 {[%emt 0:08:34]} Nxf3+ {[%emt 0:00:44]} ({Stronger than} 22... dxc4 23. Nxe5 Bxe5 24. Qxc4 $17) 23. Qxf3 {[%emt 0:00:05]} dxc4 {[%emt 0:01:54]} ({Worse is} 23... Rxe1+ 24. Rxe1 dxc4 25. Bxc4 $17) 24. Bc2 {[%emt 0:02:42]} (24. Be4 {was worth a try.} c3 25. Bc2) 24... Rad8 {[%emt 0:05:57]} 25. g3 {[%emt 0:02:32]} (25. Rxe8+ $142 Rxe8 26. h4) 25... Rxe1+ {[%emt 0:01:12]} 26. Rxe1 {[%emt 0:00:07]} b5 {[%emt 0:00:26]} 27. h4 {[%emt 0:02:20]} h5 {[%emt 0:01:19]} 28. Re2 {[%emt 0:04:01]} Bd4 {[%emt 0:00:04]} 29. g4 {[%emt 0:00:39]} Qc5 {[%emt 0:02:13]} 30. Qg3 {[%emt 0:03:15]} (30. gxh5 $142 Qxh5 31. Qxh5 gxh5 32. Rd2) 30... hxg4 {[%emt 0:01:02]} 31. Kf1 {[%emt 0:02:50]} Bf6 {[%emt 0:04:54]} 32. Qf4 $2 {[%emt 0:01:09]} (32. Qxg4 Kg7 33. h5 Qxh5 34. Qxh5 gxh5 35. Kg2) 32... Kg7 {[%emt 0:00:50]} 33. Qxg4 {[%emt 0:01:50]} Qh5 {[%emt 0:03:41]} 34. Qxh5 {[%emt 0:02:35]} gxh5 {[%emt 0:00:02]} 35. Kg2 {[%emt 0:00:10]} Rd4 {[%emt 0:00:28]} 36. Be4 {[%emt 0:00:13]} b4 {[%emt 0:00:58][%cal Od4e4] Strongly threatening ...Rxe4!} 37. Kf3 {[%emt 0:00:56]} (37. Bc2) 37... b3 {[%emt 0:00:41] Threatens to win with ...b2.} 38. axb3 {[%emt 0:00:03]} cxb3 {[%emt 0:00:03] Weighted Error Value: White=0.62/Black=0.20 (precise)} 0-1

[Event "Azerbaijan Women Championship 2022"]
[Site "Baku"]
[Date "2022.05.23"]
[Round "7.3"]
[White "Abdulla, Khayala"]
[Black "Beydullayeva, Govhar"]
[Result "0-1"]
[ECO "D30"]
[WhiteElo "2219"]
[BlackElo "2384"]
[Annotator "TA"]
[PlyCount "72"]
[EventDate "2022.05.17"]
[EventType "tourn"]
[EventCountry "AZE"]
[SourceTitle "playchess.com"]
[Source "ChessBase"]
[SourceQuality "1"]
[TimeControl "40/5400+30:1800+30"]

{[%evp 15,72,15,21,0,0,0,0,-10,0,14,8,-21,-26,-47,-41,-68,0,0,0,0,0,0,0,-6,-6,-14,43,29,14,20,15,14,34,0,0,0,15,-35,-73,-211,-120,-296,-304,-357,-356,-891,-870,-851,-835,-813,-697,-29966,-5781,-29990,-874,-914,-918,-824,-821]} 1. d4 {[%emt 0:00:23]} Nf6 {[%emt 0:00:08]} 2. c4 {[%emt 0:00:12]} e6 {[%emt 0:00:18]} 3. Nf3 {[%emt 0:00:20]} d5 {[%emt 0:02:43]} 4. Bg5 {[%emt 0:00:32]} c6 {[%emt 0:01:21]} 5. Nc3 {[%emt 0:03:36]} h6 {[%emt 0:01:49]} 6. Bxf6 {[%emt 0:04:17]} Qxf6 {[%emt 0:00:01]} 7. e3 {[%emt 0:00:19]} Nd7 {[%emt 0:03:03]} 8. Qc2 {[%emt 0:01:16]} g6 {[%emt 0:03:58]} 9. Bd3 {[%emt 0:02:02] D43: Semi-Slav: 5 Bg5 h6.} Bg7 {[%emt 0:03:40]} 10. e4 {[%emt 0:07:32]} dxc4 {[%emt 0:00:38]} 11. Bxc4 {[%emt 0:00:28] The position is equal.} e5 {[%emt 0:04:51] [#]} 12. d5 $146 {[%emt 0:02:30]} ({Predecessor:} 12. dxe5 Nxe5 13. Nxe5 Qxe5 14. O-O-O O-O 15. g3 Bg4 16. f4 Qc5 17. Be2 Bxe2 18. Nxe2 Qxc2+ 19. Kxc2 {½-½ (32) Lysiak,M (2126)-Kovalev,D (2487) Chess.com INT 2021}) 12... Nb6 {[%emt 0:01:47]} 13. Bd3 {[%emt 0:11:16]} O-O {[%emt 0:04:40]} 14. a4 {[%emt 0:09:41]} a5 {[%emt 0:26:07]} 15. Qb3 {[%emt 0:05:55]} Nd7 {[%emt 0:01:03]} ({Better is} 15... cxd5 $15 16. exd5 Qd6) 16. O-O $11 {[%emt 0:07:40]} Nc5 {[%emt 0:05:43][%csl LRb3,LRd3]} 17. Qc2 {[%emt 0:01:56]} Rd8 {[%emt 0:02:11]} 18. Nd2 {[%emt 0:03:07]} Qg5 {[%emt 0:08:30]} 19. Rfe1 {[%emt 0:02:06]} Nxd3 {[%emt 0:00:41]} 20. Qxd3 {[%emt 0:00:07]} f5 {[%emt 0:00:09]} ({Black should play} 20... Bf8 $11) 21. Nc4 {[%emt 0:08:36]} cxd5 {[%emt 0:07:03]} 22. Nxd5 {[%emt 0:00:33]} fxe4 {[%emt 0:01:10] [#]} 23. Qb3 {[%emt 0:00:58]} Kh8 {[%emt 0:03:36]} (23... Rxd5 $2 24. Nb6 Qd8 25. Qxd5+ Qxd5 26. Nxd5 $18) (23... Kh7 24. Qb5) 24. Ncb6 {[%emt 0:05:09][%mdl 1024] White has compensation. Pair of Knights!} Be6 {[%emt 0:02:19] Strongly threatening ...Ra6.} 25. Qb5 {[%emt 0:04:27]} Rab8 {[%emt 0:01:20]} 26. Re3 {[%emt 0:05:06]} (26. Qxa5 $11 Rd6 27. Ne3) 26... Rd6 $15 {[%emt 0:01:03]} 27. Nc7 {[%emt 0:01:36]} (27. Ree1 $17) 27... Bf7 {[%emt 0:02:38]} (27... Bg8 $19 {And now ...Qd8 would win.} 28. Ncd5 Rf8) 28. h3 $2 {[%emt 0:05:56] [#]} (28. Ncd5 $17 {only move.}) 28... Rbd8 $19 {[%emt 0:02:03]} 29. Qxa5 {[%emt 0:00:28]} Qf6 {[%emt 0:01:08]} 30. Nba8 $2 {[%emt 0:03:30]} (30. Nca8 Rd2 31. Rf1) 30... Rd2 {[%emt 0:00:41]} 31. Rf1 {[%emt 0:00:36]} Bc4 {[%emt 0:00:34]} 32. Ne8 {[%emt 0:01:56]} Qf7 {[%emt 0:01:41]} 33. Nxg7 {[%emt 0:00:37][%cal Oa5e5]} Bxf1 {[%emt 0:00:04]} 34. f3 {[%emt 0:00:36]} Ba6 {[%emt 0:01:41]} (34... Qf4 $142 35. Qxd8+ Rxd8 36. Rxe4 Qc1 37. Ne6 Rd2 38. Kh2 Rxg2+ 39. Kh1 Rxb2 40. Rg4 Bg2+ 41. Kh2 Qh1+ 42. Kg3 Qxh3#) 35. Nh5 {[%emt 0:01:43]} gxh5 {[%emt 0:00:08]} 36. Qxe5+ {[%emt 0:00:35]} Qg7 {[%emt 0:00:08] Weighted Error Value: White=0.76/Black=0.40} 0-1

[Event "Azerbaijan Women Championship 2022"]
[Site "Baku"]
[Date "2022.05.23"]
[Round "7.4"]
[White "Hajiyeva, Laman"]
[Black "Mamedjarova, Turkan"]
[Result "1-0"]
[ECO "C54"]
[WhiteElo "1971"]
[BlackElo "2264"]
[Annotator "TA"]
[PlyCount "63"]
[EventDate "2022.05.17"]
[EventType "tourn"]
[EventCountry "AZE"]
[SourceTitle "playchess.com"]
[Source "ChessBase"]
[SourceQuality "1"]
[TimeControl "40/5400+30:1800+30"]

{[%evp 19,63,23,17,21,36,38,54,39,60,53,57,42,48,58,68,63,49,49,54,56,112,90,116,115,147,136,178,182,184,179,216,212,228,216,275,226,495,64,368,368,1368,1148,29989,29990,29989,29990]} 1. e4 {[%emt 0:00:04]} e5 {[%emt 0:03:48]} 2. Nf3 {[%emt 0:00:20]} Nc6 {[%emt 0:00:13]} 3. Bc4 {[%emt 0:00:16]} Bc5 {[%emt 0:00:33]} 4. c3 {[%emt 0:00:39]} Nf6 {[%emt 0:02:25]} 5. d4 {[%emt 0:00:23]} exd4 {[%emt 0:00:08]} 6. e5 {[%emt 0:00:07]} d5 {[%emt 0:00:23]} 7. Bb5 {[%emt 0:00:10]} Ne4 {[%emt 0:00:12]} 8. cxd4 {[%emt 0:00:10]} Bb4+ {[%emt 0:02:33]} 9. Nbd2 {[%emt 0:00:39]} O-O {[%emt 0:03:52]} 10. O-O {[%emt 0:01:10]} Bg4 {[%emt 0:03:09] White must now prevent ...Bxd2.} 11. Qa4 {[%emt 0:02:17] C54: Giuoco Piano: 4 c3 Nf6, main lines with 5 d4 and 5 d3.} Bxd2 {[%emt 0:13:03]} 12. Nxd2 {[%emt 0:00:32]} Bd7 {[%emt 0:04:36]} 13. f3 {[%emt 0:08:20] White is slightly better.} Nxd2 {[%emt 0:06:18]} 14. Bxd2 {[%emt 0:00:10] [#]} f6 $146 {[%emt 0:08:16]} ({Predecessor:} 14... a6 15. Bxc6 Bxc6 16. Qc2 Qh4 17. f4 Rfe8 18. Rf3 g6 19. Rh3 Qg4 20. Rg3 Qe2 {1-0 (30) Piroska,I (2115)-Pesztericz,L (2094) Hungary 2014}) 15. f4 {[%emt 0:10:35]} a6 {[%emt 0:03:46]} 16. Bxc6 {[%emt 0:00:21]} Bxc6 {[%emt 0:00:23]} 17. Qb3 {[%emt 0:05:05] White is more active.} fxe5 {[%emt 0:02:13]} 18. dxe5 {[%emt 0:02:50] Hoping for Bb4.} Qd7 {[%emt 0:00:56]} 19. h3 {[%emt 0:03:56]} Kh8 {[%emt 0:01:37]} (19... h5 $14) 20. Kh2 {[%emt 0:06:41]} Bb5 {[%emt 0:06:15]} 21. Rf2 {[%emt 0:02:57]} c5 {[%emt 0:01:17]} 22. g4 {[%emt 0:07:28]} Rae8 {[%emt 0:02:53][%cal Oe8e5]} 23. Qg3 {[%emt 0:02:27]} d4 {[%emt 0:01:43]} 24. f5 {[%emt 0:09:01]} Qd5 {[%emt 0:01:34]} 25. Re1 {[%emt 0:01:52]} Bc6 {[%emt 0:05:58]} (25... Qxa2 26. b3 d3 27. e6 $16) 26. h4 {[%emt 0:05:35][%cal Bh3h4,Bh4h5][%mdl 32]} Qxa2 {[%emt 0:05:21]} 27. h5 {[%emt 0:03:02]} Qd5 {[%emt 0:02:56] [#]} (27... Qxb2 $2 28. h6 Qb6 29. hxg7+ Kxg7 30. Bh6+ $1 {[%mdl 512]} Kg8 31. e6 $18) (27... h6 28. b3 Bd5) 28. g5 $2 {[%emt 0:06:10]} (28. h6 $1 $18) 28... c4 $2 {[%emt 0:06:19][%mdl 8192] Black cannot hold the game after this.} ({Black should play} 28... g6 $1 $14) 29. g6 $18 {[%emt 0:03:31] h6 is the strong threat.} Bd7 $2 {[%emt 0:06:00]} (29... Kg8 30. f6 Rxf6 31. exf6 Qxh5+ 32. Qh3 Qxh3+ 33. Kxh3 gxf6 34. Rxe8+ Bxe8 35. Rxf6 hxg6) 30. f6 {[%emt 0:02:23] fxg7+ would kill now.} h6 {[%emt 0:03:37] [#]} 31. Bxh6 $1 {[%emt 0:01:49][%mdl 512]} Rxf6 {[%emt 0:00:04] [#]} 32. Bxg7+ $1 {[%emt 0:00:51][%mdl 512] Weighted Error Value: White=0.27 (precise) /Black=0.80} 1-0